Workbook

Sheet RIVN_DCF
B2: Company Name | C2: Rivian Automotive
B3: Ticker | C3: RIVN
B4: Share Price | C4: 14.68
B5: Valuation Date | C5: 2025-09-30
B7: =C2&" ("&C3&") DISCOUNTED CASH FLOWS MODEL" -> Rivian Automotive (RIVN) DISCOUNTED CASH FLOWS MODEL
B8: Fiscal year ends in December USD in millions except per share data.
A10: x | B10: FORECASTING CASH FLOWS
F12: Historical | K12: Projected
F14: 2021 | G14: =F14+1 -> 2022 | H14: 2023 | I14: 2024 | J14: 2025 | K14: 2026 | L14: 2027 | M14: 2028 | N14: 2029 | O14: 2030 | P14: =O14+1 -> 2031 | Q14: =P14+1 -> 2032 | R14: =Q14+1 -> 2033 | S14: =R14+1 -> 2034 | T14: =S14+1 -> 2035 | U14: 2036 | V14: 2037 | W14: 2038
B15: Revenues: Automotive | F15: =INDEX(RIVN_IS!$A$14:$H$55,MATCH(RIVN_DCF!$B15,RIVN_IS!$A$14:$A$55,0),MATCH(RIVN_DCF!F$14,RIVN_IS!$A$14:$H$14,0)) -> 0 | G15: =INDEX(RIVN_IS!$A$14:$H$55,MATCH(RIVN_DCF!$B15,RIVN_IS!$A$14:$A$55,0),MATCH(RIVN_DCF!G$14,RIVN_IS!$A$14:$H$14,0)) -> 1554 | H15: =INDEX(RIVN_IS!$A$14:$H$55,MATCH(RIVN_DCF!$B15,RIVN_IS!$A$14:$A$55,0),MATCH(RIVN_DCF!H$14,RIVN_IS!$A$14:$H$14,0)) -> 4132 | I15: =INDEX(RIVN_IS!$A$14:$H$55,MATCH(RIVN_DCF!$B15,RIVN_IS!$A$14:$A$55,0),MATCH(RIVN_DCF!I$14,RIVN_IS!$A$14:$H$14,0)) -> 4486 | J15: =INDEX(RIVN_IS!$A$14:$H$55,MATCH(RIVN_DCF!$B15,RIVN_IS!$A$14:$A$55,0),MATCH(RIVN_DCF!J$14,RIVN_IS!$A$14:$H$14,0)) -> 3830 | K15: =J15*(1+K37) -> 4569.723011 | L15: 6601.961607 | M15: 10293.33456 | N15: 13592.23008 | O15: 17033.41125 | P15: 19904.67312 | Q15: 22843.22005 | R15: 25881.36832 | S15: 29323.59031 | T15: 32255.94934 | U15: 34836.42529 | V15: 36578.24655 | W15: 38407.15888
B16: Revenues: Software Service | F16: =INDEX(RIVN_IS!$A$14:$H$55,MATCH(RIVN_DCF!$B16,RIVN_IS!$A$14:$A$55,0),MATCH(RIVN_DCF!F$14,RIVN_IS!$A$14:$H$14,0)) -> - | G16: =INDEX(RIVN_IS!$A$14:$H$55,MATCH(RIVN_DCF!$B16,RIVN_IS!$A$14:$A$55,0),MATCH(RIVN_DCF!G$14,RIVN_IS!$A$14:$H$14,0)) -> 104 | H16: =INDEX(RIVN_IS!$A$14:$H$55,MATCH(RIVN_DCF!$B16,RIVN_IS!$A$14:$A$55,0),MATCH(RIVN_DCF!H$14,RIVN_IS!$A$14:$H$14,0)) -> 302 | I16: =INDEX(RIVN_IS!$A$14:$H$55,MATCH(RIVN_DCF!$B16,RIVN_IS!$A$14:$A$55,0),MATCH(RIVN_DCF!I$14,RIVN_IS!$A$14:$H$14,0)) -> 484 | J16: =INDEX(RIVN_IS!$A$14:$H$55,MATCH(RIVN_DCF!$B16,RIVN_IS!$A$14:$A$55,0),MATCH(RIVN_DCF!J$14,RIVN_IS!$A$14:$H$14,0)) -> 1557 | K16: =J16*(1+K38) -> 2335.5 | L16: 3503.25 | M16: 5254.875 | N16: 7356.825 | O16: 9563.8725 | P16: 11954.84062 | Q16: 14943.55078 | R16: 18679.43848 | S16: 23349.2981 | T16: 29186.62262 | U16: 35023.94714 | V16: 42028.73657 | W16: 50434.48389
B17: Total Revenues | F17: =INDEX(RIVN_IS!$A$14:$H$55,MATCH(RIVN_DCF!$B17,RIVN_IS!$A$14:$A$55,0),MATCH(RIVN_DCF!F$14,RIVN_IS!$A$14:$H$14,0)) -> 55 | G17: =INDEX(RIVN_IS!$A$14:$H$55,MATCH(RIVN_DCF!$B17,RIVN_IS!$A$14:$A$55,0),MATCH(RIVN_DCF!G$14,RIVN_IS!$A$14:$H$14,0)) -> 1658 | H17: =INDEX(RIVN_IS!$A$14:$H$55,MATCH(RIVN_DCF!$B17,RIVN_IS!$A$14:$A$55,0),MATCH(RIVN_DCF!H$14,RIVN_IS!$A$14:$H$14,0)) -> 4434 | I17: =INDEX(RIVN_IS!$A$14:$H$55,MATCH(RIVN_DCF!$B17,RIVN_IS!$A$14:$A$55,0),MATCH(RIVN_DCF!I$14,RIVN_IS!$A$14:$H$14,0)) -> 4970 | J17: =INDEX(RIVN_IS!$A$14:$H$55,MATCH(RIVN_DCF!$B17,RIVN_IS!$A$14:$A$55,0),MATCH(RIVN_DCF!J$14,RIVN_IS!$A$14:$H$14,0)) -> 5387 | K17: =K16+K15 -> 6905.223011 | L17: =L16+L15 -> 10105.21161 | M17: 15548.20956 | N17: 20949.05508 | O17: 26597.28375 | P17: 31859.51375 | Q17: 37786.77084 | R17: 44560.8068 | S17: 52672.8884 | T17: 61442.57196 | U17: 69860.37243 | V17: 78606.98312 | W17: 88841.64276
B18: Cost of Revenues: Automotive | F18: =INDEX(RIVN_IS!$A$14:$H$55,MATCH(RIVN_DCF!$B18,RIVN_IS!$A$14:$A$55,0),MATCH(RIVN_DCF!F$14,RIVN_IS!$A$14:$H$14,0)) -> 520 | G18: =INDEX(RIVN_IS!$A$14:$H$55,MATCH(RIVN_DCF!$B18,RIVN_IS!$A$14:$A$55,0),MATCH(RIVN_DCF!G$14,RIVN_IS!$A$14:$H$14,0)) -> 4666 | H18: =INDEX(RIVN_IS!$A$14:$H$55,MATCH(RIVN_DCF!$B18,RIVN_IS!$A$14:$A$55,0),MATCH(RIVN_DCF!H$14,RIVN_IS!$A$14:$H$14,0)) -> 6150 | I18: =INDEX(RIVN_IS!$A$14:$H$55,MATCH(RIVN_DCF!$B18,RIVN_IS!$A$14:$A$55,0),MATCH(RIVN_DCF!I$14,RIVN_IS!$A$14:$H$14,0)) -> 5693 | J18: =INDEX(RIVN_IS!$A$14:$H$55,MATCH(RIVN_DCF!$B18,RIVN_IS!$A$14:$A$55,0),MATCH(RIVN_DCF!J$14,RIVN_IS!$A$14:$H$14,0)) -> 4262 | K18: =K15*K40 -> 4341.236861 | L18: 5941.765446 | M18: 8749.334375 | N18: 11553.39557 | O18: 13626.729 | P18: 15923.7385 | Q18: 18274.57604 | R18: 20705.09466 | S18: 23458.87225 | T18: 25804.75947 | U18: 27869.14023 | V18: 29262.59724 | W18: 30725.7271
B19: Cost of Revenues: Software Service | F19: =INDEX(RIVN_IS!$A$14:$H$55,MATCH(RIVN_DCF!$B19,RIVN_IS!$A$14:$A$55,0),MATCH(RIVN_DCF!F$14,RIVN_IS!$A$14:$H$14,0)) -> 0 | G19: =INDEX(RIVN_IS!$A$14:$H$55,MATCH(RIVN_DCF!$B19,RIVN_IS!$A$14:$A$55,0),MATCH(RIVN_DCF!G$14,RIVN_IS!$A$14:$H$14,0)) -> 115 | H19: =INDEX(RIVN_IS!$A$14:$H$55,MATCH(RIVN_DCF!$B19,RIVN_IS!$A$14:$A$55,0),MATCH(RIVN_DCF!H$14,RIVN_IS!$A$14:$H$14,0)) -> 314 | I19: =INDEX(RIVN_IS!$A$14:$H$55,MATCH(RIVN_DCF!$B19,RIVN_IS!$A$14:$A$55,0),MATCH(RIVN_DCF!I$14,RIVN_IS!$A$14:$H$14,0)) -> 477 | J19: =INDEX(RIVN_IS!$A$14:$H$55,MATCH(RIVN_DCF!$B19,RIVN_IS!$A$14:$A$55,0),MATCH(RIVN_DCF!J$14,RIVN_IS!$A$14:$H$14,0)) -> 981 | K19: =K16*K41 -> 1401.3 | L19: 2101.95 | M19: 3152.925 | N19: 4414.095 | O19: 5738.3235 | P19: 7172.904375 | Q19: 8966.130469 | R19: 11207.66309 | S19: 14009.57886 | T19: 17511.97357 | U19: 21014.36829 | V19: 25217.24194 | W19: 30260.69033
B20: Gross Profit | F20: =F17-F18-F19 -> -465 | G20: -3123 | H20: -2030 | I20: -1200 | J20: 144 | K20: 1162.686151 | L20: 2061.496161 | M20: 3645.950184 | N20: 4981.564512 | O20: 7232.231251 | P20: 8762.870875 | Q20: 10546.06432 | R20: 12648.04905 | S20: 15204.4373 | T20: 18125.83892 | U20: 20976.86391 | V20: 24127.14394 | W20: 27855.22533
B22: Selling, General and Administrative | F22: =INDEX(RIVN_IS!$A$14:$H$55,MATCH(RIVN_DCF!$B22,RIVN_IS!$A$14:$A$55,0),MATCH(RIVN_DCF!F$14,RIVN_IS!$A$14:$H$14,0)) -> 1242 | G22: =INDEX(RIVN_IS!$A$14:$H$55,MATCH(RIVN_DCF!$B22,RIVN_IS!$A$14:$A$55,0),MATCH(RIVN_DCF!G$14,RIVN_IS!$A$14:$H$14,0)) -> 1789 | H22: =INDEX(RIVN_IS!$A$14:$H$55,MATCH(RIVN_DCF!$B22,RIVN_IS!$A$14:$A$55,0),MATCH(RIVN_DCF!H$14,RIVN_IS!$A$14:$H$14,0)) -> 1714 | I22: =INDEX(RIVN_IS!$A$14:$H$55,MATCH(RIVN_DCF!$B22,RIVN_IS!$A$14:$A$55,0),MATCH(RIVN_DCF!I$14,RIVN_IS!$A$14:$H$14,0)) -> 1876 | J22: =INDEX(RIVN_IS!$A$14:$H$55,MATCH(RIVN_DCF!$B22,RIVN_IS!$A$14:$A$55,0),MATCH(RIVN_DCF!J$14,RIVN_IS!$A$14:$H$14,0)) -> 2061 | K22: =K17*K42 -> 2416.828054 | L22: 3031.563482 | M22: 3887.05239 | N22: 4189.811015 | O22: 3989.592563 | P22: 4380.683141 | Q22: 4723.346354 | R22: 5013.090765 | S22: 5267.28884 | T22: 5376.225046 | U22: 5239.527932 | V22: 4912.936445 | W22: 4442.082138
B23: Research and Development | F23: =INDEX(RIVN_IS!$A$14:$H$55,MATCH(RIVN_DCF!$B23,RIVN_IS!$A$14:$A$55,0),MATCH(RIVN_DCF!F$14,RIVN_IS!$A$14:$H$14,0)) -> 1850 | G23: =INDEX(RIVN_IS!$A$14:$H$55,MATCH(RIVN_DCF!$B23,RIVN_IS!$A$14:$A$55,0),MATCH(RIVN_DCF!G$14,RIVN_IS!$A$14:$H$14,0)) -> 1944 | H23: =INDEX(RIVN_IS!$A$14:$H$55,MATCH(RIVN_DCF!$B23,RIVN_IS!$A$14:$A$55,0),MATCH(RIVN_DCF!H$14,RIVN_IS!$A$14:$H$14,0)) -> 1995 | I23: =INDEX(RIVN_IS!$A$14:$H$55,MATCH(RIVN_DCF!$B23,RIVN_IS!$A$14:$A$55,0),MATCH(RIVN_DCF!I$14,RIVN_IS!$A$14:$H$14,0)) -> 1613 | J23: =INDEX(RIVN_IS!$A$14:$H$55,MATCH(RIVN_DCF!$B23,RIVN_IS!$A$14:$A$55,0),MATCH(RIVN_DCF!J$14,RIVN_IS!$A$14:$H$14,0)) -> 1668 | K23: =K17*K43 -> 1726.305753 | L23: 2021.042321 | M23: 3109.641912 | N23: 4189.811015 | O23: 2659.728375 | P23: 3026.653806 | Q23: 3400.809375 | R23: 3787.668578 | S23: 4213.831072 | T23: 4608.192897 | U23: 4890.22607 | V23: 5109.453903 | W23: 5330.498566
B24: EBIT | F24: =F20-F22-F23 -> -3557 | G24: =G20-G22-G23 -> -6856 | H24: -5739 | I24: -4689 | J24: -3585 | K24: -2980.447656 | L24: -2991.109643 | M24: =M20-M22-M23 -> -3350.744118 | N24: =N20-N22-N23 -> -3398.057519 | O24: =O20-O22-O23 -> 582.9103124 | P24: =P20-P22-P23 -> 1355.533928 | Q24: =Q20-Q22-Q23 -> 2421.908594 | R24: =R20-R22-R23 -> 3847.289712 | S24: =S20-S22-S23 -> 5723.317387 | T24: =T20-T22-T23 -> 8141.420972 | U24: 10847.10991 | V24: 14104.75359 | W24: 18082.64463
B25: NOL carryforward balance | H25: 12650 | I25: =14552+739 -> 15291 | J25: =19044+733 -> 19777 | K25: =IF(K24<0,J25-K24*0.9,J25-MIN(0.8*K24,J25)) -> 22459.40289 | L25: =IF(L24<0,K25-L24*0.9,K25-MIN(0.8*L24,K25)) -> 25151.40157 | M25: 28167.07127 | N25: 31225.32304 | O25: 30758.99479 | P25: 29674.56765 | Q25: 27737.04077 | R25: 24659.209 | S25: 20080.5551 | T25: 13567.41832 | U25: 4889.730387 | V25: 0 | W25: 0
B26: Taxes | C26: 0.25 | K26: =IF(K24<0,0,IF(J25>K24,K24*0.2*$C$26,(K24-J25)*$C$26)) -> 0 | L26: =IF(L24<0,0,IF(K25>L24,L24*0.2*$C$26,(L24-K25)*$C$26)) -> 0 | M26: 0 | N26: 0 | O26: 29.14551562 | P26: 67.77669641 | Q26: 121.0954297 | R26: 192.3644856 | S26: 286.1658694 | T26: 407.0710486 | U26: 542.3554956 | V26: 2303.755801 | W26: =IF(W24<0,0,IF(V25>W24,W24*0.2*$C$26,(W24-V25)*$C$26)) -> 4520.661157
B27: Tax-effected EBIT | F27: =F24-F26 -> -3557 | G27: =G24-G26 -> -6856 | H27: -5739 | I27: -4689 | J27: =J24-J26 -> -3585 | K27: =K24-K26 -> -2980.447656 | L27: =L24-L26 -> -2991.109643 | M27: =M24-M26 -> -3350.744118 | N27: -3398.057519 | O27: 553.7647968 | P27: 1287.757232 | Q27: 2300.813164 | R27: 3654.925227 | S27: 5437.151518 | T27: 7734.349924 | U27: 10304.75442 | V27: 11800.99779 | W27: 13561.98347
B29: Depreciation and amortization | F29: =INDEX(RIVN_IS!$A$14:$H$55,MATCH(RIVN_DCF!$B29,RIVN_IS!$A$14:$A$55,0),MATCH(RIVN_DCF!F$14,RIVN_IS!$A$14:$H$14,0)) -> 197 | G29: =INDEX(RIVN_IS!$A$14:$H$55,MATCH(RIVN_DCF!$B29,RIVN_IS!$A$14:$A$55,0),MATCH(RIVN_DCF!G$14,RIVN_IS!$A$14:$H$14,0)) -> 652 | H29: =INDEX(RIVN_IS!$A$14:$H$55,MATCH(RIVN_DCF!$B29,RIVN_IS!$A$14:$A$55,0),MATCH(RIVN_DCF!H$14,RIVN_IS!$A$14:$H$14,0)) -> 937 | I29: =INDEX(RIVN_IS!$A$14:$H$55,MATCH(RIVN_DCF!$B29,RIVN_IS!$A$14:$A$55,0),MATCH(RIVN_DCF!I$14,RIVN_IS!$A$14:$H$14,0)) -> 1031 | J29: =INDEX(RIVN_IS!$A$14:$H$55,MATCH(RIVN_DCF!$B29,RIVN_IS!$A$14:$A$55,0),MATCH(RIVN_DCF!J$14,RIVN_IS!$A$14:$H$14,0)) -> 784 | K29: =-K30*K45 -> 1242.940142 | L29: =-L30*L45 -> 2021.042321 | M29: =-M30*M45 -> 2332.231434 | N29: 2304.396058 | O29: 3324.660469 | P29: 3621.530664 | Q29: 3884.952377 | R29: 4118.393316 | S29: 4345.513293 | T29: 4488.187874 | U29: 4475.430109 | V29: 4366.372266 | W29: 4219.978031
B30: Capex | F30: =INDEX(RIVN_IS!$A$14:$H$55,MATCH(RIVN_DCF!$B30,RIVN_IS!$A$14:$A$55,0),MATCH(RIVN_DCF!F$14,RIVN_IS!$A$14:$H$14,0)) -> -1794 | G30: =INDEX(RIVN_IS!$A$14:$H$55,MATCH(RIVN_DCF!$B30,RIVN_IS!$A$14:$A$55,0),MATCH(RIVN_DCF!G$14,RIVN_IS!$A$14:$H$14,0)) -> -1369 | H30: =INDEX(RIVN_IS!$A$14:$H$55,MATCH(RIVN_DCF!$B30,RIVN_IS!$A$14:$A$55,0),MATCH(RIVN_DCF!H$14,RIVN_IS!$A$14:$H$14,0)) -> -1026 | I30: =INDEX(RIVN_IS!$A$14:$H$55,MATCH(RIVN_DCF!$B30,RIVN_IS!$A$14:$A$55,0),MATCH(RIVN_DCF!I$14,RIVN_IS!$A$14:$H$14,0)) -> -1141 | J30: =INDEX(RIVN_IS!$A$14:$H$55,MATCH(RIVN_DCF!$B30,RIVN_IS!$A$14:$A$55,0),MATCH(RIVN_DCF!J$14,RIVN_IS!$A$14:$H$14,0)) -> -1710 | K30: =-K44*K17 -> -2071.566903 | L30: -2526.302902 | M30: -2332.231434 | N30: -2094.905508 | O30: -2659.728375 | P30: -2986.829414 | Q30: -3306.342448 | R30: -3620.565552 | S30: -3950.46663 | T30: -4224.176822 | U30: -4366.273277 | V30: -4421.642801 | W30: -4442.082138
B31: Change in Net Working Capital | G31: =-G83 -> -47 | H31: -1340 | I31: -186 | J31: 1802 | K31: -724.7388494 | L31: -850.5217309 | M31: =-M83 -> -1049.560375 | N31: -1587.537306 | O31: -625.59027 | P31: -479.986635 | Q31: -475.4111879 | R31: -475.4144387 | S31: -507.468784 | T31: -438.0276188 | U31: =-U83 -> -259.6102769 | V31: -146.7144542 | W31: =-W83 -> -112.5412805
B32: Unlevered free cash flows | F32: =SUM(F27:F31) -> -5154 | G32: -7620 | H32: -7168 | I32: -4985 | J32: -2709 | K32: -4533.813267 | L32: =SUM(L27:L31) -> -4346.891954 | M32: -4400.304493 | N32: -4776.104274 | O32: 593.1066205 | P32: 1442.471847 | Q32: 2404.011905 | R32: 3677.338551 | S32: 5324.729397 | T32: 7560.333356 | U32: 10154.30097 | V32: 11599.0128 | W32: 13227.33808
F34: Historical | K34: Projected
F35: =F14 -> 2021 | G35: =F35+1 -> 2022 | H35: 2023 | I35: 2024 | J35: 2025 | K35: 2026 | L35: 2027 | M35: 2028 | N35: 2029 | O35: 2030 | P35: =O35+1 -> 2031 | Q35: =P35+1 -> 2032 | R35: =Q35+1 -> 2033 | S35: =R35+1 -> 2034 | T35: =S35+1 -> 2035 | U35: 2036 | V35: 2037 | W35: 2038
B36: Assumptions
B37: Automotive Growth | G37: =IFERROR(G15/F15-1,0) -> 0 | H37: 1.658944659 | I37: 0.08567279768 | J37: -0.146232724 | K37: 0.1931391674 | L37: 0.4447181132 | M37: 0.5591327504 | N37: 0.3204885161 | O37: 0.2531726697 | P37: 0.1685664621 | Q37: 0.1476310066 | R37: 0.133 | S37: 0.133 | T37: 0.1 | U37: 0.08 | V37: 0.05 | W37: 0.05 | Y37: Step
B38: Software Services Growth | G38: 0 | H38: 1.903846154 | I38: 0.6026490066 | J38: 2.216942149 | K38: 0.5 | L38: 0.5 | M38: 0.5 | N38: 0.4 | O38: 0.3 | P38: 0.25 | Q38: 0.25 | R38: 0.25 | S38: 0.25 | T38: 0.25 | U38: 0.2 | V38: 0.2 | W38: 0.2 | Y38: Step
B39: Total Revenue Growth | G39: 29.14545455 | H39: 1.674306393 | I39: 0.1208840776 | J39: 0.08390342052 | Y39: Step
B40: COGS-Automotive (as a % of Automotive) | F40: =IFERROR(F18/F15,0) -> 0 | G40: 3.002574003 | H40: 1.488383349 | I40: 1.269059296 | J40: 1.112793734 | K40: 0.95 | L40: 0.9 | M40: 0.85 | N40: 0.85 | O40: 0.8 | P40: 0.8 | Q40: 0.8 | R40: 0.8 | S40: 0.8 | T40: 0.8 | U40: 0.8 | V40: 0.8 | W40: 0.8 | Y40: Step
B41: COGS-Software Services (as a % of Software) | F41: 0 | G41: 1.105769231 | H41: 1.039735099 | I41: 0.9855371901 | J41: 0.6300578035 | K41: 0.6 | L41: 0.6 | M41: 0.6 | N41: 0.6 | O41: 0.6 | P41: 0.6 | Q41: 0.6 | R41: 0.6 | S41: 0.6 | T41: 0.6 | U41: 0.6 | V41: 0.6 | W41: 0.6 | Y41: Step
B42: SGA (as a % of total revenue) | F42: =IFERROR(F22/F17,0) -> 22.58181818 | G42: =IFERROR(G22/G17,0) -> 1.079010856 | H42: =IFERROR(H22/H17,0) -> 0.3865584123 | I42: =IFERROR(I22/I17,0) -> 0.3774647887 | J42: =IFERROR(J22/J17,0) -> 0.3825877112 | K42: 0.35 | L42: 0.3 | M42: 0.25 | N42: 0.2 | O42: 0.15 | P42: =O42+$AA42 -> 0.1375 | Q42: 0.125 | R42: 0.1125 | S42: 0.1 | T42: 0.0875 | U42: 0.075 | V42: 0.0625 | W42: 0.05 | Y42: Step | Z42: 0.05 | AA42: =(Z42-O42)/($W$35-$O$35) -> -0.0125
B43: R&D (as a % of total revenue) | F43: =IFERROR(F23/F17,0) -> 33.63636364 | G43: =IFERROR(G23/G17,0) -> 1.172496984 | H43: =IFERROR(H23/H17,0) -> 0.449932341 | I43: =IFERROR(I23/I17,0) -> 0.3245472837 | J43: =IFERROR(J23/J17,0) -> 0.3096343048 | K43: 0.25 | L43: 0.2 | M43: 0.2 | N43: 0.2 | O43: 0.1 | P43: 0.095 | Q43: 0.09 | R43: 0.085 | S43: 0.08 | T43: 0.075 | U43: 0.07 | V43: 0.065 | W43: 0.06 | Y43: Step | Z43: 0.06 | AA43: =(Z43-O43)/($W$35-$O$35) -> -0.005
B44: Capex (as a % of total revenue) | F44: =IFERROR(-F30/F17,0) -> 32.61818182 | G44: =IFERROR(-G30/G17,0) -> 0.8256936068 | H44: =IFERROR(-H30/H17,0) -> 0.2313937754 | I44: =IFERROR(-I30/I17,0) -> 0.2295774648 | J44: =IFERROR(-J30/J17,0) -> 0.3174308521 | K44: 0.3 | L44: 0.25 | M44: 0.15 | N44: 0.1 | O44: 0.1 | P44: 0.09375 | Q44: 0.0875 | R44: 0.08125 | S44: 0.075 | T44: 0.06875 | U44: 0.0625 | V44: 0.05625 | W44: 0.05 | Y44: Step | Z44: 0.05 | AA44: =(Z44-O44)/($W$35-$O$35) -> -0.00625
B45: Depreciation and amortization (as % of capex) | F45: =-F29/F30 -> 0.1098104794 | G45: =-G29/G30 -> 0.4762600438 | H45: =-H29/H30 -> 0.9132553606 | I45: =-I29/I30 -> 0.9035933392 | J45: =-J29/J30 -> 0.4584795322 | K45: 0.6 | L45: 0.8 | M45: 1 | N45: 1.1 | O45: 1.25 | P45: 1.2125 | Q45: 1.175 | R45: 1.1375 | S45: 1.1 | T45: 1.0625 | U45: 1.025 | V45: 0.9875 | W45: 0.95 | Y45: Step | Z45: 0.95 | AA45: =(Z45-O45)/($W$35-$O$35) -> -0.0375
B46: Gross margin
A48: x | B48: TERMINAL VALUE AND EQUITY VALUE PER SHARE
F50: Terminal Value - Perpetuity Growth | K50: Terminal Value - Exit Multiple | P50: Option Drag
F51: WACC - for terminal value
F52: Unlevered FCF in terminal year | K52: Terminal year EBITDA | P52: Implied Equity Value (Using TV)
F53: Terminal growth rate | K53: Terminal year EBITDA multiple | P53: Basic Shares
F54: Terminal value | K54: Terminal value | P54: Value of Options
F55: WACC - current | K55: WACC - current | P55: Implied Equity Value per Share
F56: PV of Terminal Value | K56: PV of Terminal Value
P57: Treasury Outstanding Options
F58: PV of Unlevered Free Cash Flows | K58: PV of Unlevered Free Cash Flows | P58: Implied Equity Value
F59: Total Enterprise Value | K59: Total Enterprise Value | P59: Diluted Shares Outstanding
F60: Net debt + Preferred stock + NCI | K60: Net debt + Preferred stock + NCI | P60: Total Proceeds
F61: Implied Equity Value | K61: Implied Equity Value | P61: Implied Equity Value per Share
F62: Diluted Shares Outstanding | K62: Diluted Shares Outstanding
F63: Implied Equity Value per Share | K63: Implied Equity Value per Share
A67: x | B67: WORKING CAPITAL SCHEDULE
F70: Historical | K70: Projected
F71: =F14 -> 2021 | G71: =F71+1 -> 2022 | H71: 2023 | I71: 2024 | J71: 2025 | K71: 2026 | L71: 2027 | M71: 2028 | N71: 2029 | O71: 2030 | P71: =O71+1 -> 2031 | Q71: =P71+1 -> 2032 | R71: =Q71+1 -> 2033 | S71: =R71+1 -> 2034 | T71: =S71+1 -> 2035 | U71: 2036 | V71: 2037 | W71: 2038
B72: Total Current Assets | F72: =INDEX(RIVN_BS!$A$14:$H$54,MATCH(RIVN_DCF!$B72,RIVN_BS!$A$14:$A$54,0),MATCH(RIVN_DCF!F$71,RIVN_BS!$A$14:$H$14,)) -> 18559 | G72: =INDEX(RIVN_BS!$A$14:$H$54,MATCH(RIVN_DCF!$B72,RIVN_BS!$A$14:$A$54,0),MATCH(RIVN_DCF!G$71,RIVN_BS!$A$14:$H$14,)) -> 13130 | H72: =INDEX(RIVN_BS!$A$14:$H$54,MATCH(RIVN_DCF!$B72,RIVN_BS!$A$14:$A$54,0),MATCH(RIVN_DCF!H$71,RIVN_BS!$A$14:$H$14,)) -> 12313 | I72: =INDEX(RIVN_BS!$A$14:$H$54,MATCH(RIVN_DCF!$B72,RIVN_BS!$A$14:$A$54,0),MATCH(RIVN_DCF!I$71,RIVN_BS!$A$14:$H$14,)) -> 10583 | J72: =INDEX(RIVN_BS!$A$14:$H$54,MATCH(RIVN_DCF!$B72,RIVN_BS!$A$14:$A$54,0),MATCH(RIVN_DCF!J$71,RIVN_BS!$A$14:$H$14,)) -> 8592
B73: Cash and Cash Equivalents | F73: =INDEX(RIVN_BS!$A$14:$H$54,MATCH(RIVN_DCF!$B73,RIVN_BS!$A$14:$A$54,0),MATCH(RIVN_DCF!F$71,RIVN_BS!$A$14:$H$14,)) -> 18133 | G73: =INDEX(RIVN_BS!$A$14:$H$54,MATCH(RIVN_DCF!$B73,RIVN_BS!$A$14:$A$54,0),MATCH(RIVN_DCF!G$71,RIVN_BS!$A$14:$H$14,)) -> 11568 | H73: =INDEX(RIVN_BS!$A$14:$H$54,MATCH(RIVN_DCF!$B73,RIVN_BS!$A$14:$A$54,0),MATCH(RIVN_DCF!H$71,RIVN_BS!$A$14:$H$14,)) -> 7857 | I73: =INDEX(RIVN_BS!$A$14:$H$54,MATCH(RIVN_DCF!$B73,RIVN_BS!$A$14:$A$54,0),MATCH(RIVN_DCF!I$71,RIVN_BS!$A$14:$H$14,)) -> 5294 | J73: =INDEX(RIVN_BS!$A$14:$H$54,MATCH(RIVN_DCF!$B73,RIVN_BS!$A$14:$A$54,0),MATCH(RIVN_DCF!J$71,RIVN_BS!$A$14:$H$14,)) -> 3579
B74: Short-term Investments | F74: =INDEX(RIVN_BS!$A$14:$H$54,MATCH(RIVN_DCF!$B74,RIVN_BS!$A$14:$A$54,0),MATCH(RIVN_DCF!F$71,RIVN_BS!$A$14:$H$14,)) -> 0 | G74: =INDEX(RIVN_BS!$A$14:$H$54,MATCH(RIVN_DCF!$B74,RIVN_BS!$A$14:$A$54,0),MATCH(RIVN_DCF!G$71,RIVN_BS!$A$14:$H$14,)) -> 0 | H74: =INDEX(RIVN_BS!$A$14:$H$54,MATCH(RIVN_DCF!$B74,RIVN_BS!$A$14:$A$54,0),MATCH(RIVN_DCF!H$71,RIVN_BS!$A$14:$H$14,)) -> 1511 | I74: =INDEX(RIVN_BS!$A$14:$H$54,MATCH(RIVN_DCF!$B74,RIVN_BS!$A$14:$A$54,0),MATCH(RIVN_DCF!I$71,RIVN_BS!$A$14:$H$14,)) -> 2406 | J74: =INDEX(RIVN_BS!$A$14:$H$54,MATCH(RIVN_DCF!$B74,RIVN_BS!$A$14:$A$54,0),MATCH(RIVN_DCF!J$71,RIVN_BS!$A$14:$H$14,)) -> 2503
B75: Total non-cash current assets | F75: =F72-F73-F74 -> 426 | G75: =G72-G73-G74 -> 1562 | H75: 2945 | I75: 2883 | J75: 2510
B77: Total Current Liabilities | F77: =INDEX(RIVN_BS!$A$14:$H$54,MATCH(RIVN_DCF!$B77,RIVN_BS!$A$14:$A$54,0),MATCH(RIVN_DCF!F$71,RIVN_BS!$A$14:$H$14,)) -> 1313 | G77: =INDEX(RIVN_BS!$A$14:$H$54,MATCH(RIVN_DCF!$B77,RIVN_BS!$A$14:$A$54,0),MATCH(RIVN_DCF!G$71,RIVN_BS!$A$14:$H$14,)) -> 2424 | H77: =INDEX(RIVN_BS!$A$14:$H$54,MATCH(RIVN_DCF!$B77,RIVN_BS!$A$14:$A$54,0),MATCH(RIVN_DCF!H$71,RIVN_BS!$A$14:$H$14,)) -> 2487 | I77: =INDEX(RIVN_BS!$A$14:$H$54,MATCH(RIVN_DCF!$B77,RIVN_BS!$A$14:$A$54,0),MATCH(RIVN_DCF!I$71,RIVN_BS!$A$14:$H$14,)) -> 2251 | J77: =INDEX(RIVN_BS!$A$14:$H$54,MATCH(RIVN_DCF!$B77,RIVN_BS!$A$14:$A$54,0),MATCH(RIVN_DCF!J$71,RIVN_BS!$A$14:$H$14,)) -> 3693
B78: Current Portion of Long-term Debt | F78: =INDEX(RIVN_BS!$A$14:$H$54,MATCH(RIVN_DCF!$B78,RIVN_BS!$A$14:$A$54,0),MATCH(RIVN_DCF!F$71,RIVN_BS!$A$14:$H$14,)) -> 0 | G78: =INDEX(RIVN_BS!$A$14:$H$54,MATCH(RIVN_DCF!$B78,RIVN_BS!$A$14:$A$54,0),MATCH(RIVN_DCF!G$71,RIVN_BS!$A$14:$H$14,)) -> 0 | H78: =INDEX(RIVN_BS!$A$14:$H$54,MATCH(RIVN_DCF!$B78,RIVN_BS!$A$14:$A$54,0),MATCH(RIVN_DCF!H$71,RIVN_BS!$A$14:$H$14,)) -> 0 | I78: =INDEX(RIVN_BS!$A$14:$H$54,MATCH(RIVN_DCF!$B78,RIVN_BS!$A$14:$A$54,0),MATCH(RIVN_DCF!I$71,RIVN_BS!$A$14:$H$14,)) -> 0 | J78: =INDEX(RIVN_BS!$A$14:$H$54,MATCH(RIVN_DCF!$B78,RIVN_BS!$A$14:$A$54,0),MATCH(RIVN_DCF!J$71,RIVN_BS!$A$14:$H$14,)) -> 0
B79: Current portion of lease liabilities | F79: =INDEX(RIVN_BS!$A$14:$H$54,MATCH(RIVN_DCF!$B79,RIVN_BS!$A$14:$A$54,0),MATCH(RIVN_DCF!F$71,RIVN_BS!$A$14:$H$14,)) -> 46 | G79: =INDEX(RIVN_BS!$A$14:$H$54,MATCH(RIVN_DCF!$B79,RIVN_BS!$A$14:$A$54,0),MATCH(RIVN_DCF!G$71,RIVN_BS!$A$14:$H$14,)) -> 68 | H79: =INDEX(RIVN_BS!$A$14:$H$54,MATCH(RIVN_DCF!$B79,RIVN_BS!$A$14:$A$54,0),MATCH(RIVN_DCF!H$71,RIVN_BS!$A$14:$H$14,)) -> 88 | I79: =INDEX(RIVN_BS!$A$14:$H$54,MATCH(RIVN_DCF!$B79,RIVN_BS!$A$14:$A$54,0),MATCH(RIVN_DCF!I$71,RIVN_BS!$A$14:$H$14,)) -> 100 | J79: =INDEX(RIVN_BS!$A$14:$H$54,MATCH(RIVN_DCF!$B79,RIVN_BS!$A$14:$A$54,0),MATCH(RIVN_DCF!J$71,RIVN_BS!$A$14:$H$14,)) -> 113
B80: Total non-debt current liabilities | F80: =F77-F78-F79 -> 1267 | G80: =G77-G78-G79 -> 2356 | H80: 2399 | I80: 2151 | J80: 3580
B82: Non-cash Net Working Capital | F82: =F75-F80 -> -841 | G82: =G75-G80 -> -794 | H82: 546 | I82: 732 | J82: -1070 | K82: =K88*K17 -> -345.2611506 | L82: 505.2605803 | M82: 1554.820956 | N82: 3142.358262 | O82: 3767.948532 | P82: 4247.935167 | Q82: 4723.346354 | R82: 5198.760793 | S82: 5706.229577 | T82: 6144.257196 | U82: 6403.867473 | V82: 6550.581927 | W82: 6663.123207
B83: Change in NWC | G83: =G82-F82 -> 47 | H83: =H82-G82 -> 1340 | I83: 186 | J83: -1802 | K83: =K82-J82 -> 724.7388494 | L83: =L82-K82 -> 850.5217309 | M83: 1049.560375 | N83: 1587.537306 | O83: 625.59027 | P83: 479.986635 | Q83: 475.4111879 | R83: 475.4144387 | S83: 507.468784 | T83: 438.0276188 | U83: 259.6102769 | V83: 146.7144542 | W83: 112.5412805
F86: Historical | K86: Projected
F87: =F71 -> 2021 | G87: =F87+1 -> 2022 | H87: 2023 | I87: 2024 | J87: 2025 | K87: 2026 | L87: 2027 | M87: 2028 | N87: 2029 | O87: 2030 | P87: =O87+1 -> 2031 | Q87: =P87+1 -> 2032 | R87: =Q87+1 -> 2033 | S87: =R87+1 -> 2034 | T87: =S87+1 -> 2035 | U87: 2036 | V87: 2037 | W87: 2038
B88: Non-cash NWC as a % of Sale | F88: =IFERROR(F82/F17,"") -> -15.29090909 | G88: =IFERROR(G82/G17,"") -> -0.4788902292 | H88: =IFERROR(H82/H17,"") -> 0.1231393775 | I88: =IFERROR(I82/I17,"") -> 0.1472837022 | J88: =IFERROR(J82/J17,"") -> -0.1986263226 | K88: -0.05 | L88: 0.05 | M88: 0.1 | N88: 0.15 | O88: =N88+$AA$88 -> 0.1416666667 | P88: 0.1333333333 | Q88: 0.125 | R88: 0.1166666667 | S88: 0.1083333333 | T88: 0.1 | U88: 0.09166666667 | V88: 0.08333333333 | W88: 0.075 | Y88: Step | Z88: 0.075 | AA88: =(Z88-N88)/(W87-N87) -> -0.008333333333
A91: x | B91: DILUTED SHARES
F94: Treasury with a Twist- All Outstanding Options | K94: Treasury Method- All Outstanding Options
F95: Basic share count | K95: Basic share count
F96: Outstanding options | K96: Oustanding options
F97: Exercise price | K97: Exercise price
F98: Current share price | I98: =C4 -> 14.68
F99: In-the-money options
F100: Total proceeds | K100: Total proceeds
F101: Total shares repurchased
F102: Diluted shares outstanding | K102: Diluted shares outstanding
A105: x | B105: WACC
F107: Current
B108: Percent of Capital
B109: Total debt
B110: Share price | F110: =C4 -> 14.68
B111: Shares outstanding
B112: Market value of equity
B114: Weight of debt
B115: Weight of equity
B117: Cost of debt
B118: Pre-tax cost of debt
B119: Marginal tax rate
B121: Cost of equity
B122: Risk-free rate
B123: Market risk premium (Rm - Rf)
B124: Beta
B125: Cost of equity
B127: Weighted average cost of capital
A129: x | B129: BOTTOM UP BETA
E132: MV | F132: Book Value | G132: Debt/ | H132: Reg | I132: Unlevered | K132: Marginal
B133: Company | C133: Ticker | E133: Equity | F133: Debt | G133: Equity | H133: Beta | I133: Beta | K133: Tax Rate
B141: Average unlevered beta
B142: Average unlevered beta (Full industry)
B143: =C3&" Debt/Equity ratio" -> RIVN Debt/Equity ratio
B144: =C3&" Tax Rate" -> RIVN Tax Rate
B145: =C3&" Levered Beta" -> RIVN Levered Beta
A147: x | B147: SENSITIVITY ANALYSIS

Sheet RIVN_Forecast
B2: Key Metrics (Annual)
B3: Dollars in millions | D3: Actual | H3: Projected
D4: 2021 | E4: 2022 | F4: 2023 | G4: 2024 | H4: 2025 | I4: 2026 | J4: 2027 | K4: 2028 | L4: 2029 | M4: 2030 | N4: 2031 | O4: 2032 | P4: 2033 | Q4: 2034
B5: Production | D5: 1015 | E5: 24337 | F5: 57232 | G5: 49476 | H5: 42284
B6: Delivery | D6: 920 | E6: 20332 | F6: 50122 | G6: 51579 | H6: 42247 | I6: =I7+I9+I11 -> 69800 | J6: =J7+J9+J11 -> 103170 | K6: =K7+K9+K11+K13 -> 166915.5 | L6: =L7+L9+L11+L13 -> 219086.325 | M6: 269939.4487 | N6: 306063.2355 | O6: 340185.393 | P6: 372461.808 | Q6: 407878.7582
B7: R1 | F7: =F6-F9 -> 43332 | G7: =G6-G9 -> 40361 | H7: =H6-H9 -> 30247 | I7: 26000 | J7: =I7*(1+J8) -> 27300 | K7: 28665 | L7: 30098.25 | M7: 31603.1625 | N7: 33183.32063 | O7: 34842.48666 | P7: 36584.61099 | Q7: 38413.84154
B8: R1 Growth | G8: =G7/F7-1 -> -0.06856364811 | H8: =H7/G7-1 -> -0.2505884393 | I8: =I7/H7-1 -> -0.1404106192 | J8: 0.05 | K8: 0.05 | L8: 0.05 | M8: 0.05 | N8: 0.05 | O8: 0.05 | P8: 0.05 | Q8: 0.05
B9: RCV or EDV | F9: =SUM(G58:J58) -> 6790 | G9: =SUM(K58:N58) -> 11218 | H9: 12000 | I9: =H9*(1+I10) -> 13800 | J9: 15870 | K9: 18250.5 | L9: 20988.075 | M9: 24136.28625 | N9: 26549.91487 | O9: 29204.90636 | P9: 32125.397 | Q9: 35337.9367
B10: RCV Growth | G10: =G9/F9-1 -> 0.6521354934 | H10: =H9/G9-1 -> 0.06970939561 | I10: 0.15 | J10: 0.15 | K10: 0.15 | L10: 0.15 | M10: 0.15 | N10: 0.1 | O10: 0.1 | P10: 0.1 | Q10: 0.1
B11: R2 | I11: 30000 | J11: 60000 | K11: 90000 | L11: =K11*(1+L12) -> 108000 | M11: 124200 | N11: 142830 | O11: 157113 | P11: 172824.3 | Q11: 190106.73
B12: R2 Growth | L12: 0.2 | M12: 0.15 | N12: 0.15 | O12: 0.1 | P12: 0.1 | Q12: 0.1
B13: R3 | K13: 30000 | L13: 60000 | M13: 90000 | N13: =M13*(1+N14) -> 103500 | O13: =N13*(1+O14) -> 119025 | P13: =O13*(1+P14) -> 130927.5 | Q13: =P13*(1+Q14) -> 144020.25
M14: 0.2 | N14: 0.15 | O14: 0.15 | P14: 0.1 | Q14: 0.1
B15: Price Increases | C15: 0.03
B20: Rev per R1 | G20: =C91/1000000 -> 0.09 | H20: =G20 -> 0.09 | I20: =H20*(1+$C$15) -> 0.0927 | J20: 0.095481 | K20: 0.09834543 | L20: 0.1012957929 | M20: 0.1043346667 | N20: 0.1074647067 | O20: 0.1106886479 | P20: 0.1140093073 | Q20: 0.1174295865
B21: Rev per RCV | G21: =C92/1000000 -> 0.04639953646 | H21: =G21 -> 0.04639953646 | I21: =H21*(1+$C$15) -> 0.04779152255 | J21: 0.04922526823 | K21: 0.05070202628 | L21: 0.05222308706 | M21: 0.05378977968 | N21: 0.05540347307 | O21: 0.05706557726 | P21: 0.05877754458 | Q21: 0.06054087091
B22: Rev Per R2 | I22: 0.05 | J22: =I22*(1+$C$15) -> 0.0515 | K22: 0.053045 | L22: 0.05463635 | M22: 0.0562754405 | N22: 0.05796370372 | O22: 0.05970261483 | P22: 0.06149369327 | Q22: 0.06333850407
B23: Rev per R3 | K23: 0.05 | L23: =K23*(1+$C$15) -> 0.0515 | M23: =L23*(1+$C$15) -> 0.053045 | N23: 0.05463635 | O23: 0.0562754405 | P23: =O23*(1+$C$15) -> 0.05796370372 | Q23: 0.05970261483
H25: =H26/G26-1 -> -0.146232724 | I25: =I26/H26-1 -> 0.1931391674 | J25: 0.4175555698 | K25: 0.5465749067 | L25: 0.3111411505 | M25: 0.2453967281 | N25: 0.1596523379 | O25: 0.1386705303 | P25: 0.1238053444 | Q25: 0.1241514747
B26: Revenues: Automotive | D26: 0 | E26: 1554 | F26: 4132 | G26: 4486 | H26: 3830 | I26: =I7*I20+I9*I21+I11*I22 -> 4569.723011 | J26: =J7*J20+J9*J21+J11*J22 -> 6477.836307 | K26: =K7*K20+K9*K21+K11*K22+K13*K23 -> 10018.45908 | L26: 13135.61397 | M26: 16359.05066 | N26: 18970.81134 | O26: 21601.50381 | P26: 24275.88542 | Q26: 27289.7724
B27: Revenues: Software Service | D27: - | E27: 104 | F27: 302 | G27: 484 | H27: 1557 | I27: =H27*(1+I33) -> 2335.5 | J27: 3503.25 | K27: 5254.875 | L27: 7356.825 | M27: 9563.8725 | N27: 11954.84062 | O27: =N27*(1+O33) -> 14943.55078 | P27: 18679.43848 | Q27: 23349.2981
B28: Total Revenues | D28: 55 | E28: 1658 | F28: 4434 | G28: 4970 | H28: =H27+H26 -> 5387 | I28: 6905.223011 | J28: 9981.086307 | K28: 15273.33408 | L28: 20492.43897 | M28: 25922.92316 | N28: 30925.65196 | O28: =O27+O26 -> 36545.05459 | P28: 42955.3239 | Q28: 50639.07049
B30: % Automotive | E30: =E26/E$28 -> 0.9372738239 | F30: =F26/F$28 -> 0.9318899414 | G30: 0.9026156942 | H30: 0.7109708558 | I30: 0.6617777592 | J30: 0.6490111505 | K30: 0.6559444734 | L30: 0.6409980768 | M30: 0.6310650445 | N30: =N26/N$28 -> 0.6134328667 | O30: 0.591092394 | P30: 0.5651426463 | Q30: 0.5389074509
B31: % Software | E31: =E27/E$28 -> 0.06272617612 | F31: =F27/F$28 -> 0.06811005864 | G31: 0.09738430584 | H31: 0.2890291442 | I31: 0.3382222408 | J31: 0.3509888495 | K31: 0.3440555266 | L31: 0.3590019232 | M31: 0.3689349555 | N31: =N27/N$28 -> 0.3865671333 | O31: 0.408907606 | P31: 0.4348573537 | Q31: 0.4610925491
B33: Software | F33: =F27/E27-1 -> 1.903846154 | G33: =G27/F27-1 -> 0.6026490066 | H33: =H27/G27-1 -> 2.216942149 | I33: 0.5 | J33: 0.5 | K33: 0.5 | L33: 0.4 | M33: 0.3 | N33: 0.25 | O33: 0.25 | P33: 0.25 | Q33: 0.25
B34: Non VW growth | H34: =(H27-836)/G27-1 -> 0.4896694215
B36: Revenue/Vehicle | D36: =D28/D6*1000000 -> 59782.6087 | E36: =(E26-E44)/E6*1000000 -> 76431.24139 | F36: =(F26-F44)/F6*1000000 -> 80982.40294 | G36: 80517.26478 | H36: =(H26-H44)/H6*1000000 -> 86728.0517 | I36: =(I26-I44)/I6*1000000 -> 65468.81105 | J36: 62787.98398 | K36: 60021.14292 | L36: 59956.33898 | M36: 60602.66749 | N36: 61983.30651 | O36: =(O26-O44)/O6*1000000 -> 63499.21028 | P36: 65176.84472 | Q36: 66906.57909
B39: Guidance (at beginning of year)
B40: Production | E40: 25000 | F40: 57000 | G40: 47000-49000
B41: Delivery | G41: 50500-52000
E43: 2022 | F43: 2023 | G43: 2024 | H43: 2025
B44: Regulatory credits | E44: 0 | F44: 73 | G44: 333 | H44: 166 | I44: 0 | J44: 0 | K44: 0
B46: Revenue Projection (CAPIQ) | I46: 6938 | J46: 11499 | K46: 16411 | L46: 26781 | M46: 34777 | N46: 33268 | O46: 38246 | P46: 42882 | Q46: 47965
B47: Growth (%) | J47: =J46/I46-1 -> 0.6573940617 | K47: 0.4271675798 | L47: 0.6318932423 | M47: 0.2985698816 | N47: -0.04339074676 | O47: 0.1496332812 | P47: 0.1212152905 | Q47: 0.1185345833
B48: EBITDA | I48: -2003 | J48: -960 | K48: 170 | L48: 2329 | M48: 4540
B50: Quarterly
C51: 2022Q1 | D51: 2022Q2 | E51: 2022Q3 | F51: 2022Q4 | G51: 2023Q1 | H51: 2023Q2 | I51: 2023Q3 | J51: 2023Q4 | K51: 2024Q1 | L51: 2024Q2 | M51: 2024Q3 | N51: 2024Q4 | O51: 2025Q1 | P51: 2025Q2
B52: Production | C52: 2553 | D52: 4401 | E52: 7363 | F52: 10020 | G52: 9395 | H52: 13992 | I52: 16304 | J52: 17541 | K52: 13980 | L52: 9612 | M52: 13157 | N52: 12727 | O52: 14611 | P52: 5979
B53: Delivery | C53: 1227 | D53: 4467 | E53: 6584 | F53: 8054 | G53: 7946 | H53: 12640 | I53: 15564 | J53: 13972 | K53: 13588 | L53: 13790 | M53: 10018 | N53: 14183 | O53: 8640 | P53: 10661
B54: Y-o-Y | G54: =G52/C52-1 -> 2.679984332 | H54: =H52/D52-1 -> 2.179277437 | I54: 1.214314817 | J54: 0.7505988024 | K54: 0.4880255455 | L54: -0.3130360206 | M54: -0.1930201178 | N54: -0.2744427342 | O54: 0.04513590844 | P54: -0.3779650437
B55: Y-o-Y | G55: =G53/C53-1 -> 5.47595762 | H55: =H53/D53-1 -> 1.829639579 | I55: 1.363912515 | J55: 0.7347901664 | K55: 0.7100427888 | L55: 0.09098101266 | M55: -0.3563351324 | N55: 0.01510163184 | O55: -0.3641448337 | P55: -0.2269035533
B57: Estimated split of R1S and R1T and RSV (generated by ChatGPT)
B58: RCV | C58: 0 | D58: 0 | E58: 0 | F58: 0 | G58: 397 | H58: 1264 | I58: 2335 | J58: 2794 | K58: 2718 | L58: 3034 | M58: 2204 | N58: 3262 | O58: 2074 | P58: 2665
B59: R1S | C59: 25 | D59: 223 | E59: 527 | F59: 966 | G59: 3774 | H59: 5460 | I59: 5953 | J59: 5589 | K59: 5652 | L59: 5378 | M59: 3751 | N59: 5460 | O59: 3283 | P59: 3998
B60: R1T | C60: 1202 | D60: 4244 | E60: 6057 | F60: 7088 | G60: 3775 | H60: 5916 | I60: 7276 | J60: 5589 | K60: 5218 | L60: 5378 | M60: 4063 | N60: 5461 | O60: 3283 | P60: 3998
B62: Guidance for 2025
B63: As of | C63: 2024Q4 | D63: 2025Q1 | E63: 2025Q2 | F63: 2026Q1
B64: Delivery | C64: 46000-51000 | D64: 40000-46000 | E64: 40000-46000 | F64: 62000-67000 | G64: (9000-11000 in Q1 and Q2)
B65: EBITDA | C65: (1700)-(1900) | D65: (1700)-(1900) | E65: (2000-2520) | F65: (1800)-(2100)
B66: Capex | C66: 1600-1700 | D66: 1800-1900 | E66: 1800-1900 | F66: 1950-2050
B69: Normal Factory | C69: 2025 | D69: 2026 | E69: 2027 | F69: 2028 | G69: 2029
B70: Annual Production | C70: 150000 | D70: 215000 | E70: 215000 | F70: 215000 | G70: 215000
B71: R1 | C71: 85000 | D71: 85000 | E71: 85000 | F71: 85000 | G71: 85000
B72: RCV | C72: 65000 | D72: 65000 | E72: 65000 | F72: 65000 | G72: 65000
B73: R2 | D73: 155000 | E73: 155000 | F73: 155000 | G73: 155000
D74: **Does not total as these are up to.
B76: Georgia Factory ***R2 and R3 models
B77: Phase 1 | F77: 200000
B78: Phase 2 | G78: 400000
B80: Total capacity | C80: =C78+C77+C70 -> 150000 | D80: 215000 | E80: 215000 | F80: =F78+F77+F70 -> 415000 | G80: 615000
B82: RCV orders | C82: Ordered | D82: Delivered | E82: Remaining
B83: Amazon | C83: 100000 | D83: 30000 | E83: =C83-D83 -> 70000
B84: Hello Fresh/Factor | C84: 70
B85: AT&T | C85: Pilot program
B90: Average Price
B91: R1 | C91: 90000
B92: RCV | C92: =(G26-G44-G20*(G6-G9))/G9*1000000 -> 46399.53646
B93: R2 | C93: 50000
B95: Midsize SUV Models sold in 2024
D96: 2024 | E96: 2025 | F96: %Change | G96: RS2 Market | H96: Projected
C97: Tesla Model Y | D97: 313699 | E97: 255801 | F97: =E97/D97-1 -> -0.1845654592 | G97: 0.05 | H97: =G97*E97 -> 12790.05
C98: Toyota RAV4 | D98: 475193 | E98: 479288 | F98: =E98/D98-1 -> 0.008617551184 | G98: 0.005 | H98: =G98*E98 -> 2396.44
C99: Honda CR-V | D99: 402791 | E99: 403768 | F99: 0.002425575547 | G99: 0.005 | H99: =G99*E99 -> 2018.84
C100: Nissan Rogue | D100: 245723 | E100: 217898 | F100: -0.1132372631 | G100: 0.005 | H100: =G100*E100 -> 1089.49
C101: Chevrolet Equinox | D101: 207732 | E101: 299441 | F101: 0.4414774806 | G101: 0.005 | H101: =G101*E101 -> 1497.205
C102: Jeep Grand Cherokee | D102: 216148 | E102: 210081 | F102: -0.02806873068 | G102: 0.005 | H102: =G102*E102 -> 1050.405
C103: Ford Explorer | D103: 206981 | E103: 222706 | F103: 0.07597315696 | G103: 0.005 | H103: =G103*E103 -> 1113.53
C104: Subaru Forester | D104: 175521 | E104: 175070 | F104: -0.002569493109 | G104: 0.005 | H104: =G104*E104 -> 875.35
C105: Hyundai Tucson | D105: 206126 | E105: 234230 | F105: 0.1363437897 | G105: 0.005 | H105: =G105*E105 -> 1171.15
C106: Chevrolet Trax | D106: 200688 | E106: 203341 | F106: 0.01321952483 | G106: 0.005 | H106: =G106*E106 -> 1016.705
C107: Subaru Outback | D107: 168771 | E107: 157716 | F107: -0.06550295963 | G107: 0.005 | H107: =G107*E107 -> 788.58
C108: Kia Sportage | D108: 161917 | E108: 182823 | F108: 0.1291155345 | G108: 0.005 | H108: =G108*E108 -> 914.115
C109: Subaru Crosstrek | D109: 181811 | E109: 191724 | F109: 0.05452365368 | G109: 0.005 | H109: =G109*E109 -> 958.62
C110: Jeep Wrangler | D110: 151164 | E110: 167349 | F110: 0.1070691434 | G110: 0.005 | H110: =G110*E110 -> 836.745
C111: Honda HR-V | D111: 151468 | E111: 148771 | F111: -0.01780574115 | G111: 0.005 | H111: =G111*E111 -> 743.855
C112: Ford Escape | D112: 157331 | E112: 139396 | F112: -0.1139953347 | G112: 0.005 | H112: =G112*E112 -> 696.98
C113: Mazda CX-5 | D113: 134088 | E113: 136333 | F113: 0.01674273611 | G113: 0.005 | H113: =G113*E113 -> 681.665
D114: =SUM(D97:D113) -> 3757152 | E114: =SUM(E96:E113) -> 3827761 | F114: =SUMPRODUCT(F97:F113,E97:E113)/E114 -> 0.03553144233 | H114: =SUM(H97:H113) -> 30639.725

Sheet _Comps
B2: =RIVN_DCF!C2&"Valuation with Public Comparables" -> Rivian AutomotiveValuation with Public Comparables
B3: =RIVN_DCF!B8 -> Fiscal year ends in December USD in millions except per share data.
B4: Valuation for period ended
B5: Ticker | C5: =RIVN_DCF!C3 -> RIVN
B6: Valuation Date
B7: Company Name | C7: =RIVN_DCF!C2 -> Rivian Automotive | H7: Enterprise Value Multiples | N7: Equity Value Multiples
F8: Market Value | G8: Enterprise | K8: Forward | L8: 5 year growth | M8: BV | N8: Forward | O8: Forward | P8: Price(Market)- | Q8: Cash/MS as
B9: Company | C9: Ticker | D9: Share price | F9: of Equity | G9: Value | H9: EV/Sales | I9: EV/EBIT | J9: EV/EBITDA | K9: EPS | L9: rate | M9: Equity | N9: P/E | O9: PEG | P9: to-Book | Q9: % of TA
B10: =RIVN_DCF!C2 -> Rivian Automotive | C10: =C5 -> RIVN | D10: =RIVN_DCF!C4 -> 14.68
G19: High
G20: Mean
G21: Median
G22: Low
D25: Implied price per share | E25: Diluted shares outstanding | F25: Implied Equity Value | G25: Implied Enterprise Value | H25: Range of EV/Sales | I25: Range of EV/EBIT | J25: Range of EV/EBITDA | N25: Range of Forward P/E | O25: Range of Forward PEG | P25: Range of Price-to-Book | Q25: Excess Cash
B26: =RIVN_DCF!C2 -> Rivian Automotive

Sheet Option_Value
B2: Valuing Options or Warrants
B3: Enter the current stock price =
B4: Enter the strike price on the option =
B5: Enter the expiration of the option =
B6: Enter the standard deviation in stock prices = | F6: (volatility)
B7: Enter the annualized dividend yield on stock =
B8: Enter the treasury bond rate =
B9: Enter the number of options outstanding =
B10: Enter the number of shares outstanding =
B12: Circuit Breaker | C12: OFF
B14: Do not input any numbers below this line
B15: VALUING WARRANTS WHEN THERE IS DILUTION
B16: Stock Price= | D16: =E3 -> 0 | E16: # Warrants issued= | G16: =E9 -> 0
B17: Strike Price= | D17: =E4 -> 0 | E17: # Shares outstanding= | G17: =E10 -> 0
B18: Adjusted S = | D18: =(D16*G17+D29*G16)/(G17+G16) ->  | E18: T.Bond rate= | G18: =E8 -> 0
B19: Adjusted K = | D19: =D17 -> 0 | E19: Variance= | G19: =E6^2 -> 0
B20: Expiration (in years) = | D20: =E5 -> 0 | E20: Annualized dividend yield= | G20: =E7 -> 0
E21: Div. Adj. interest rate= | G21: =G18-G20 -> 0
B23: d1 = | C23: =(LN(D18/D19)+(G21+(G19/2))*D20)/(((G19)^(0.5))*(D20^0.5)) -> 
B24: N (d1) = | C24: =NORMSDIST(C23) -> 
B26: d2 = | C26: =C23-((G19^0.5)*(D20^(0.5))) -> 
B27: N (d2) = | C27: =NORMSDIST(C26) -> 
B29: Value per option = | D29: =IF(C12="OFF",((EXP((0-G20)*D20))*D18*C24-D19*(EXP((0-G18)*D20))*C27),0) -> 
B30: Value of all options outstanding = | E30: =D29*E9 -> 

Sheet RIVN_IS
A5: Rivian Automotive, Inc. (NasdaqGS:RIVN) > Financials > Income Statement
B7: Template: | C7: As Presented | E7: Restatement: | F7: Latest Filings
B8: Period Type: | C8: Annual | E8: Order: | F8: Latest on Right
B9: Currency: | C9: Reported Currency | E9: Conversion: | F9: Historical
B10: Units: | C10: S&P Capital IQ (Default) | E10: Decimals: | F10: Capital IQ (Default)
B11: Source: | C11: Capital IQ & Proprietary Data
A14: Income Statement | B14: 2019 | C14: 2020 | D14: 2021 | E14: 2022 | F14: 2023 | G14: 2024 | H14: 2025
A15: For the Fiscal Period Ending | B15: 12 months Dec-31-2019 | C15: 12 months Dec-31-2020 | D15: 12 months Dec-31-2021 | E15: 12 months Dec-31-2022 | F15: 12 months Dec-31-2023 | G15: 12 months Dec-31-2024 | H15: 12 months Dec-31-2025
A16: Currency | B16: USD | C16: USD | D16: USD | E16: USD | F16: USD | G16: USD | H16: USD
A17: Units | B17: Millions | C17: Millions | D17: Millions | E17: Millions | F17: Millions | G17: Millions | H17: Millions
A18: Revenues
A19: Revenues: Automotive | B19: - | C19: - | E19: 1554 | F19: 4132 | G19: 4486 | H19: 3830
A20: Revenues: Software Service | B20: - | C20: - | D20: - | E20: 104 | F20: 302 | G20: 484 | H20: 1557
A21: Revenues | B21: - | C21: - | D21: 55 | E21: - | F21: - | G21: - | H21: -
A22: Total Revenues | D22: =D21 -> 55 | E22: 1658 | F22: 4434 | G22: 4970 | H22: 5387
A24: Expenses | B24: =0*(-1) -> 0 | C24: 0 | D24: 0 | E24: 0 | F24: 0 | G24: 0
A25: Cost of Revenues | B25: =0*(-1) -> 0 | C25: 0 | D25: =-520*(-1) -> 520 | E25: =0*(-1) -> 0 | F25: =0*(-1) -> 0 | G25: =0*(-1) -> 0 | H25: -
A26: Cost of Revenues: Software Service | B26: 0 | C26: 0 | D26: =0*(-1) -> 0 | E26: =-115*(-1) -> 115 | F26: =-314*(-1) -> 314 | G26: =-477*(-1) -> 477 | H26: =-981*(-1) -> 981
A27: Cost of Revenues: Automotive | B27: 0 | C27: 0 | D27: =-520*(-1) -> 520 | E27: =-4666*(-1) -> 4666 | F27: =-6150*(-1) -> 6150 | G27: =-5693*(-1) -> 5693 | H27: =-4262*(-1) -> 4262
A28: Selling, General and Administrative | B28: =-108*(-1) -> 108 | C28: =-255*(-1) -> 255 | D28: =-1242*(-1) -> 1242 | E28: =-1789*(-1) -> 1789 | F28: =-1714*(-1) -> 1714 | G28: =-1876*(-1) -> 1876 | H28: =-2061*(-1) -> 2061
A29: Research and Development | B29: =-301*(-1) -> 301 | C29: =-766*(-1) -> 766 | D29: =-1850*(-1) -> 1850 | E29: =-1944*(-1) -> 1944 | F29: =-1995*(-1) -> 1995 | G29: =-1613*(-1) -> 1613 | H29: =-1668*(-1) -> 1668
A30: Other Expenses | B30: - | C30: - | D30: =-663*(-1) -> 663 | E30: - | F30: - | G30: - | H30: -
A31: Interest Expense | B31: =-34*(-1) -> 34 | C31: =-8*(-1) -> 8 | D31: =-29*(-1) -> 29 | E31: =-103*(-1) -> 103 | F31: =-220*(-1) -> 220 | G31: =-318*(-1) -> 318 | H31: =-274*(-1) -> 274
A32: Interest Income | B32: 18 | C32: 10 | D32: 3 | E32: 193 | F32: 522 | G32: 385 | H32: =293*(-1) -> -293
A33: Other Income/expense-net | B33: -1 | C33: 1 | D33: -1 | E33: 18 | F33: 6 | G33: -7 | H33: =-54*(-1) -> 54
A34: Loss on Convertible Notes, Net | B34: - | C34: - | D34: -441 | E34: - | F34: - | G34: -112 | H34: -
A35: Earnings before Taxes | B35: -426 | C35: -1018 | D35: -4688 | E35: -6748 | F35: -5431 | G35: -4741 | H35: -3620
A37: Taxes and Other Expenses
A38: Provision for Income Tax | B38: - | C38: - | D38: - | E38: -4 | F38: -1 | G38: -5 | H38: -6
A39: Minority Interest (After Tax) | B39: - | C39: - | D39: - | E39: - | F39: - | G39: -1 | H39: -20
A40: Net Income (Loss) | B40: -426 | C40: -1018 | D40: -4688 | E40: -6752 | F40: -5432 | G40: -4747 | H40: -3646
A42: Charges on Net Income
A43: Premiums on Preferred Stock Redemption | B43: - | C43: -1 | D43: - | E43: - | F43: - | G43: - | H43: -
A44: Net Income Available to Common Shareholders | B44: -426 | C44: -1019 | D44: - | E44: - | F44: - | G44: - | H44: -
A46: Supplementary Info
A47: Gross Profit/loss | B47: - | C47: - | D47: -465 | E47: -3123 | F47: -2030 | G47: -1200 | H47: 144
A48: Operating Income (Loss) | B48: -409 | C48: -1021 | D48: -4220 | E48: -6856 | F48: -5739 | G48: -4689 | H48: -3585
A49: Basic EPS - Continuing Operations | B49: -4.35 | C49: -10.09 | D49: -22.98 | E49: -7.4 | F49: -5.74 | G49: -4.69 | H49: -3.07
A50: Diluted EPS - Continuing Operations | B50: -4.35 | C50: -10.09 | D50: -22.98 | E50: -7.4 | F50: -5.74 | G50: -4.69 | H50: -3.07
A52: Note: For multiple class companies, per share items are primary class equivalent, and for foreign companies listed as primary ADRs, per share items are ADR-equivalent.
A54: Depreciation and amortization | B54: 7 | C54: 29 | D54: 197 | E54: 652 | F54: 937 | G54: 1031 | H54: 784
A55: Capex | B55: -199 | C55: -914 | D55: -1794 | E55: -1369 | F55: -1026 | G55: -1141 | H55: -1710

Sheet RIVN_BS
A5: Rivian Automotive, Inc. (NasdaqGS:RIVN) > Financials > Balance Sheet
B7: Template: | C7: As Presented | E7: Restatement: | F7: Latest Filings
B8: Period Type: | C8: Annual | E8: Order: | F8: Latest on Right
B9: Currency: | C9: Reported Currency | E9: Conversion: | F9: Historical
B10: Units: | C10: S&P Capital IQ (Default) | E10: Decimals: | F10: Capital IQ (Default)
B11: Source: | C11: Capital IQ & Proprietary Data
A14: Balance Sheet | B14: 2019 | C14: 2020 | D14: 2021 | E14: 2022 | F14: 2023 | G14: 2024 | H14: 2025
A15: Balance Sheet as of: | B15: 2019-12-31 | C15: 2020-12-31 | D15: 2021-12-31 | E15: 2022-12-31 | F15: 2023-12-31 | G15: 2024-12-31 | H15: 2025-12-31
A16: Currency | B16: USD | C16: USD | D16: USD | E16: USD | F16: USD | G16: USD | H16: USD
A17: Units | B17: Millions | C17: Millions | D17: Millions | E17: Millions | F17: Millions | G17: Millions | H17: Millions
A18: Current Assets
A19: Cash and Cash Equivalents | B19: 2264 | C19: 2979 | D19: 18133 | E19: 11568 | F19: 7857 | G19: 5294 | H19: 3579
A20: Short-term Investments | F20: 1511 | G20: 2406 | H20: 2503
A21: Accounts Receivable, Net | B21: - | C21: 6 | D21: 26 | E21: 102 | F21: 161 | G21: 443 | H21: 555
A22: Inventory | D22: 274 | E22: 1348 | F22: 2620 | G22: 2248 | H22: 1594
A23: Other Current Assets | B23: 29 | C23: 31 | D23: 126 | E23: 112 | F23: 164 | G23: 192 | H23: 361
A24: Total Current Assets | B24: 2293 | C24: 3016 | D24: 18559 | E24: 13130 | F24: 12313 | G24: 10583 | H24: 8592
A26: Non Current Assets
A27: Operating Lease Assets – Net | C27: 80 | D27: 228 | E27: 330 | F27: 356 | G27: 416 | H27: 571
A28: Property, Plant and Equipment, Net | B28: 313 | C28: 1445 | D28: 3183 | E28: 3758 | F28: 3874 | G28: 3965 | H28: 5119
A29: Other Non-current Assets | B29: 27 | C29: 61 | D29: 324 | E29: 658 | F29: 235 | G29: 446 | H29: 582
A30: Total Assets | B30: 2633 | C30: 4602 | D30: 22294 | E30: 17876 | F30: 16778 | G30: 15410 | H30: 14864
A32: Current Liabilities
A33: Accounts Payable | B33: 27 | C33: 90 | D33: 483 | E33: 1000 | F33: 981 | G33: 499 | H33: 595
A34: Accrued Liabilities | B34: 137 | C34: 443 | D34: 667 | E34: 1154 | F34: 1145 | G34: 835 | H34: 1438
A35: Current Portion of Long-term Debt | C35: 28
A36: Customer Deposits | B36: 18 | C36: 28
A37: Current portion of lease liabilities and other Current liabilities | B37: 3 | C37: 22 | D37: 163 | E37: 270
A38: Current portion of deferred revenues, lease liabilities, and other liabilities | B38: - | C38: - | D38: - | E38: - | F38: 361 | G38: 917 | H38: 1660
A39: Total Current Liabilities | B39: 185 | C39: 611 | D39: 1313 | E39: 2424 | F39: 2487 | G39: 2251 | H39: 3693
A40: Current portion of lease liabilities | C40: 18 | D40: 46 | E40: 68 | F40: 88 | G40: 100 | H40: 113
A41: Non Current Liabilities
A42: Noncurrent Portion of Long-term Debt | B42: 71 | C42: 47 | D42: 1226 | E42: 1231 | F42: 4431 | G42: 4441 | H42: 4440
A43: Non Current Lease Liabilities | B43: - | C43: 83 | D43: 218 | E43: 311 | F43: 324 | G43: 379 | H43: 551
A44: Minority Interest | B44: - | C44: - | D44: - | E44: - | F44: - | G44: 4 | H44: 28
A45: Preferred Stock Convertible | B45: 2750 | C45: 5244 | D45: - | E45: - | F45: - | G45: - | H45: -
A46: Other Non-current Liabilities | B46: 2 | C46: 1 | D46: 23 | E46: 111 | F46: 395 | G46: 1777 | H46: 1586
A48: Shareholders' Equity
A49: Common Stock - Par Value | B49: - | C49: - | D49: 1 | E49: 1 | F49: 1 | G49: 1 | H49: 1
A50: Additional Paid in Capital | B50: 293 | C50: 302 | D50: 25887 | E50: 26926 | F50: 27695 | G50: 29866 | H50: 31508
A51: Accumulated Deficit | B51: -668 | C51: -1686 | D51: -6374 | E51: -13126 | F51: -18558 | G51: -23305 | H51: -26951
A52: Accumulated Other Comprehensive Income (Loss) | B52: - | C52: - | D52: - | E52: -2 | F52: 3 | G52: -4 | H52: 8
A53: Total Shareholders Equity | B53: -375 | C53: -1384 | D53: 19514 | E53: 13799 | F53: 9141 | G53: 6558 | H53: 4566
A54: Total Liabilities & Shareholders Equity | B54: 2633 | C54: 4602 | D54: 22294 | E54: 17876 | F54: 16778 | G54: 15410 | H54: 14864
A56: Note: For multiple class companies, total share counts are primary class equivalent, and for foreign companies listed as primary ADRs, total share counts are ADR-equivalent.

Sheet RIVN_CFS
A5: Rivian Automotive, Inc. (NasdaqGS:RIVN) > Financials > Cash Flow
B7: Template: | C7: As Presented | E7: Restatement: | F7: Latest Filings
B8: Period Type: | C8: Annual | E8: Order: | F8: Latest on Right
B9: Currency: | C9: Reported Currency | E9: Conversion: | F9: Historical
B10: Units: | C10: S&P Capital IQ (Default) | E10: Decimals: | F10: Capital IQ (Default)
B11: Source: | C11: Capital IQ & Proprietary Data
A14: Cash Flow
A15: For the Fiscal Period Ending | B15: 12 months Dec-31-2020 | C15: 12 months Dec-31-2021 | D15: 12 months Dec-31-2022 | E15: 12 months Dec-31-2023 | F15: 12 months Dec-31-2024 | G15: 12 months Dec-31-2025
A16: Currency | B16: USD | C16: USD | D16: USD | E16: USD | F16: USD | G16: USD
A17: Units | B17: Millions | C17: Millions | D17: Millions | E17: Millions | F17: Millions | G17: Millions
A18: Operating Activities
A19: Net Income | B19: -1018 | C19: -4688 | D19: -6752 | E19: - | F19: - | G19: -
A20: Net Loss | B20: - | C20: - | D20: - | E20: -5432 | F20: -4746 | G20: -3626
A21: Depreciation and Amortization | B21: 29 | C21: 197 | D21: 652 | E21: 937 | F21: 1031 | G21: 784
A22: Gain on Equity Method Investment | B22: - | C22: - | D22: - | E22: - | F22: - | G22: -101
A23: Stock Based Compenation Expense | B23: - | C23: 570 | D23: 987 | E23: 821 | F23: 692 | G23: 741
A24: Inventory LCNRV write-downs and losses on firm purchase Commitments | B24: - | C24: 95 | D24: 920 | E24: - | F24: - | G24: -
A25: Other Non-current Assets | B25: -8 | C25: -8 | D25: - | E25: - | F25: - | G25: -
A26: Other Non-current Liabilities | B26: -1 | C26: 18 | D26: - | E26: - | F26: - | G26: -
A27: Other Expenses | B27: - | C27: 643 | D27: - | E27: - | F27: - | G27: -
A28: Other Non-cash Activities | B28: 41 | C28: 36 | D28: 82 | E28: 222 | F28: 28 | G28: -17
A29: Loss on Convertible Notes, Net | B29: - | C29: 441 | D29: - | E29: - | F29: 112 | G29: -
A30: Accounts Receivable | B30: 11 | C30: -20 | D30: -76 | E30: -59 | F30: -282 | G30: -112
A31: Inventory | B31: - | C31: -369 | D31: -1657 | E31: -1604 | F31: 307 | G31: 522
A32: Accounts Payable and Accrued Liabilities | B32: 121 | C32: 461 | D32: 623 | E32: 105 | F32: -572 | G32: 571
A33: Deferred Revenue | B33: - | C33: - | D33: 61 | E33: 149 | F33: 1619 | G33: 503
A34: Other Liabilities | B34: 11 | C34: 83 | D34: 144 | E34: 141 | F34: 316 | G34: -53
A35: Other Current Assets | B35: -34 | C35: -81 | D35: -36 | E35: -146 | F35: -221 | G35: 9
A36: Cash Flow from Operating Activities | B36: -848 | C36: -2622 | D36: -5052 | E36: -4866 | F36: -1716 | G36: -779
A38: Investing Activities
A39: Capital Expenditures | B39: -914 | C39: -1794 | D39: -1369 | E39: -1026 | F39: -1141 | G39: -1710
A40: Maturities of Short-term Investments | B40: - | C40: - | D40: - | E40: 925 | F40: 3553 | G40: 2980
A41: Sale of Equity Securities and Short-term Investments | B41: - | C41: - | D41: - | E41: - | F41: - | G41: 108
A42: Purchases of Equity Securities and Short-term Investments | B42: - | C42: - | D42: - | E42: -2410 | F42: -4392 | G42: -3206
A43: Cash Flow from Investing Activities | B43: -914 | C43: -1794 | D43: -1369 | E43: -2511 | F43: -1980 | G43: -1828
A45: Financing Activities
A46: Repayment of Long-term Debt | B46: - | C46: - | D46: - | E46: - | F46: - | G46: -1250
A47: Proceeds from Issuance of Convertible Notes | B47: - | C47: 2500 | D47: - | E47: 3195 | F47: 1000 | G47: -
A48: Proceeds from Issuance of Long - Term Debt, Net of Discount and Debt Issuance Costs | B48: - | C48: 1226 | D48: - | E48: - | F48: - | G48: 1250
A49: Proceeds from Issuances of Capital Stock | B49: 2506 | C49: 2658 | D49: 102 | E49: - | F49: - | G49: 750
A50: Proceeds from Share Issuance Upon Initial Public Offering, Net of Underwriting Discounts and Commissions and Offering Costs | B50: - | C50: 13530 | D50: - | E50: - | F50: - | G50: -
A51: Proceeds from Stock-based Compensation Programs | B51: - | C51: - | D51: - | E51: 60 | F51: 62 | G51: 61
A52: Purchase of Capped Call Option | B52: - | C52: - | D52: - | E52: -108 | F52: - | G52: -
A53: Other Financing Activities | B53: - | C53: -86 | D53: -3 | E53: -17 | F53: -5 | G53: -37
A54: Principal Payments and Other Financing Activities | B54: -6 | C54: - | D54: - | E54: - | F54: - | G54: -
A55: Proceeds from funding of 46.5% interest in Mind Robotics, Inc | B55: - | C55: - | D55: - | E55: - | F55: - | G55: 112
A56: Proceeds from funding of 50% interest in Rivian and Volkswagen Group Technologies, LLC | B56: - | C56: - | D56: - | E56: - | F56: 79 | G56: -
A57: Cash Flow from Financing Activities | B57: 2500 | C57: 19828 | D57: 99 | E57: 3130 | F57: 1136 | G57: 886
A59: Other Adjustments
A60: Foreign Exchange Rate Effect on Cash and Cash Equivalents | B60: - | C60: - | D60: -2 | E60: 5 | F60: -3 | G60: 6
A61: Cash Flow Net Changes in Cash | B61: 738 | C61: 15412 | D61: -6324 | E61: -4242 | F61: -2563 | G61: -1715
